bitfinex/quotes_SOLUSD_20251124
["timestamp","ask_amount","ask_price","bid_price","bid_amount"]
[1764024504522,25.4733153,139.01,138.98,0.7]
[1764024505749,0.68,139.0,138.98,0.7]
[1764024506250,24.7933153,139.01,138.98,0.7]
[1764024506439,25.4733153,139.01,138.98,0.7]
[1764024507355,25.4733153,139.01,138.98,7.89524411]
[1764024508360,25.4733153,139.01,138.98,0.7]
[1764024509552,25.4733153,139.01,138.98,7.89519644]
[1764024510254,25.4733153,139.01,138.98,70.39519644]
[1764024510452,0.68,139.0,138.98,70.39519644]
[1764024514854,3.16,139.01,138.98,70.39519644]
[1764024515162,0.68,139.0,138.98,70.39519644]
[1764024515758,3.16,139.01,138.98,69.69519644]
[1764024515960,0.68,139.0,138.98,70.39519644]
[1764024517937,3.84,139.01,138.98,70.39519644]
[1764024518534,0.68,139.0,138.98,70.39519644]
[1764024521638,0.68,139.0,138.98,63.2]
[1764024521839,0.68,139.0,138.98,70.39513584]
[1764024523066,3.84,139.01,138.98,70.39513584]
[1764024523766,0.68,139.0,138.98,70.39513584]
[1764024524957,3.16,139.01,138.98,70.39513584]
[1764024525265,3.84,139.01,138.98,70.39513584]
[1764024526068,3.84,139.01,138.98,7.89513584]
[1764024526746,0.73932681,139.0,138.98,7.89513584]
[1764024528969,0.66,138.99,138.95,25.18891687]
[1764024529155,1.39932681,139.0,138.95,25.87891687]
[1764024529356,1.39932681,139.0,138.96,0.69]
[1764024530575,1.39932681,139.0,138.97,7.19579765]
[1764024531485,1.39932681,139.0,138.98,0.69]
[1764024531785,1.39932681,139.0,138.98,70.38521045]
[1764024534777,1.39932681,139.0,138.98,69.69521045]
[1764024535153,1.39932681,139.0,138.98,70.36521045]
[1764024535359,1.39932681,139.0,138.98,69.69521045]
[1764024536060,3.70007873,138.99,138.98,62.5]
[1764024536261,20.00894273,138.99,138.98,62.5]
[1764024537050,20.00894273,138.99,138.98,59.5]
[1764024538256,20.00894273,138.99,138.96,66.69617479]
[1764024538457,6.86007873,138.98,138.96,67.36617479]
[1764024538977,6.86007873,138.98,138.96,7.19617479]
[1764024539877,0.68,138.97,138.96,7.19617479]
[1764024541482,0.68,138.97,138.95,7.86662039]
[1764024543494,0.68,138.97,138.95,7.19662039]
[1764024544792,0.68,138.97,138.95,59.5]
[1764024544793,3.70007873,138.97,138.95,59.5]
[1764024545277,0.68,138.96,138.95,59.5]
[1764024545476,0.68,138.96,138.93,7.86746038]
[1764024545477,12.51002365,138.96,138.93,0.67]
[1764024545687,6.18007873,138.95,138.92,7.19820267]
[1764024545999,6.86007873,138.95,138.91,7.96871237]
[1764024546205,0.68,138.94,138.91,7.96871237]
[1764024546373,3.70007873,138.94,138.91,0.1]
[1764024546573,11.83002365,138.93,138.91,0.1]
[1764024546775,3.16,138.92,138.91,0.1]
[1764024547077,3.84,138.92,138.91,0.1]
[1764024561414,8.56533444,138.92,138.91,0.1]
[1764024564401,7.88533444,138.92,138.91,0.1]
[1764024564601,8.58533444,138.92,138.91,0.1]
[1764024572121,7.88533444,138.92,138.91,0.1]
[1764024572909,8.58533444,138.92,138.91,0.1]
[1764024574310,30.23426101,138.92,138.91,0.1]
[1764024574510,30.23426101,138.92,138.88,59.35695517]
[1764024575426,29.53426101,138.92,138.88,59.35695517]
[1764024575811,30.23426101,138.92,138.88,59.35695517]
[1764024576413,30.23426101,138.92,138.89,7.19966821]
[1764024584436,30.23426101,138.92,138.89,66.55662338]
[1764024585623,24.80892657,138.92,138.89,66.55662338]
[1764024587235,25.50892657,138.92,138.89,66.55662338]
[1764024588355,24.80892657,138.92,138.89,67.27662338]
[1764024588844,25.47892657,138.92,138.89,67.27662338]
[1764024589752,25.47892657,138.92,138.89,66.55662338]
[1764024590251,30.20426101,138.92,138.89,66.55662338]
[1764024591243,24.80892657,138.92,138.9,0.72]
[1764024591451,0.67,138.91,138.88,0.72]
[1764024591662,25.47892657,138.92,138.88,0.72]
[1764024592336,0.67,138.91,138.88,0.72]
[1764024592840,0.67,138.91,138.87,25.30309777]
[1764024592841,3.18,138.9,138.87,25.96309777]
[1764024593040,3.18,138.9,138.88,0.66]
[1764024593561,3.18,138.9,138.89,7.1999424]
[1764024594245,3.18,138.9,138.89,7.8599424]
[1764024595460,7.90533444,138.93,138.89,7.8599424]
[1764024595664,3.18,138.93,138.9,0.66]
[1764024596338,3.18,138.93,138.9,63.16]
[1764024597335,3.18,138.93,138.91,0.66]
[1764024597538,3.18,138.93,138.92,7.19838756]
[1764024599168,3.18,138.93,138.91,69.69867789]
[1764024599333,3.87,138.93,138.91,69.69867789]
[1764024599536,3.18,138.93,138.89,7.1995297]
[1764024599760,0.69,138.92,138.89,7.8595297]
[1764024600133,25.51892657,138.93,138.9,0.66]
[1764024600337,3.18,138.93,138.9,0.66]
[1764024600875,23.50574966,138.95,138.9,63.16]
[1764024600876,16.998864,138.95,138.9,63.16]
[1764024601063,3.18,138.94,138.9,63.16]
[1764024601262,3.18,138.94,138.91,0.66]
[1764024601456,3.18,138.94,138.91,63.16]
[1764024601763,3.18,138.94,138.92,7.19838756]
[1764024601946,3.18,138.94,138.92,7.85838756]
[1764024602267,3.18,138.94,138.93,0.66]
[1764024603964,3.18,138.94,138.93,7.85786943]
[1764024605165,3.18,138.94,138.93,7.19786943]
[1764024605380,3.18,138.94,138.93,7.85786943]
[1764024605743,3.18,138.94,138.93,7.19786943]
[1764024606147,24.21419844,138.95,138.93,7.19786943]
[1764024606468,4.72533444,138.94,138.93,7.19786943]
[1764024607471,5.41533444,138.94,138.93,7.19786943]
[1764024607866,4.72533444,138.94,138.93,7.19786943]
[1764024609576,24.90419844,138.95,138.93,7.19786943]
[1764024610571,0.69,138.94,138.93,7.19786943]
[1764024610866,24.90419844,138.95,138.93,7.19786943]
[1764024611246,24.90419844,138.95,138.93,62.5]
[1764024612074,16.308864,138.91,138.87,0.1]
[1764024612278,4.72533444,138.89,138.87,0.1]
[1764024612451,3.18,138.88,138.87,0.1]
[1764024612974,11.1411935,138.88,138.87,0.1]
[1764024614572,11.8311935,138.88,138.87,0.1]
[1764024615981,16.55652794,138.88,138.87,0.1]
[1764024616681,14.85742334,138.88,138.87,0.1]
[1764024618878,11.8311935,138.88,138.87,0.1]
[1764024620082,11.8311935,138.88,138.87,62.6]
[1764024620880,14.85742334,138.88,138.87,62.6]
[1764024621482,11.8311935,138.88,138.87,62.6]
[1764024626479,14.85742334,138.88,138.87,62.6]
[1764024628379,30.86782908,138.88,138.87,62.6]
[1764024629896,27.84159924,138.88,138.87,62.6]
[1764024630105,30.86782908,138.88,138.87,62.6]
[1764024631980,30.86782908,138.88,138.87,0.1]
[1764024632176,47.17669308,138.88,138.87,0.1]
[1764024632383,50.20292292,138.88,138.87,0.1]
[1764024632592,47.02292292,138.88,138.87,0.1]
[1764024632790,50.20292292,138.88,138.87,0.1]
[1764024632987,33.89405892,138.88,138.87,0.1]
[1764024638205,42.97274844,138.88,138.86,0.1]
[1764024638430,28.82503876,138.87,138.86,0.1]
[1764024639385,22.60555355,138.87,138.86,0.1]
[1764024640308,25.78555355,138.87,138.86,0.1]
[1764024640714,22.75932371,138.87,138.86,0.1]
[1764024640881,3.02622984,138.89,138.86,0.78]
[1764024641082,3.02622984,138.9,138.86,0.78]
[1764024641385,3.18,138.89,138.86,0.78]
[1764024642700,19.488864,138.89,138.87,7.20097933]
[1764024643109,6.20622984,138.89,138.87,7.88097933]
[1764024646618,19.33509384,138.89,138.87,7.88097933]
[1764024646827,22.51509384,138.89,138.87,70.38097933]
[1764024652428,3.02622984,138.88,138.87,63.18]
[1764024653201,22.51509384,138.89,138.87,63.18]
[1764024653396,19.33509384,138.88,138.87,62.5]
[1764024653909,19.33509384,138.88,138.87,63.19]
[1764024659537,6.20622984,138.89,138.87,63.19]
[1764024661034,3.02622984,138.88,138.87,63.19]
[1764024662018,3.02622984,138.88,138.87,62.5]
[1764024662019,3.70622984,138.88,138.87,62.5]
[1764024664726,3.02622984,138.88,138.87,63.19]
[1764024664933,3.02622984,138.88,138.87,62.5]
[1764024666442,3.02622984,138.88,138.86,7.99143069]
[1764024667349,3.70622984,138.88,138.86,0.79]
[1764024667549,3.70622984,138.88,138.86,0.1]
[1764024667847,3.02622984,138.88,138.86,0.79]
[1764024668147,3.02622984,138.87,138.86,0.1]
[1764024668463,3.02622984,138.87,138.86,0.79]
[1764024669349,3.86,138.89,138.86,0.79]
[1764024669550,3.02622984,138.88,138.86,0.79]
[1764024669750,3.02622984,138.88,138.86,7.99144708]
[1764024670554,3.02622984,138.88,138.86,7.30144708]
[1764024670756,3.70622984,138.88,138.86,7.30144708]
[1764024670934,3.70622984,138.88,138.86,7.99144708]
[1764024672358,3.02622984,138.88,138.86,7.99144708]
[1764024673250,3.70622984,138.88,138.86,7.99144708]
[1764024673451,3.70622984,138.87,138.86,0.1]
[1764024676542,3.70622984,138.87,138.86,62.6]
[1764024678658,5.40936874,138.87,138.86,62.6]
[1764024680742,21.42029299,138.87,138.86,0.1]
[1764024681094,27.070917,138.87,138.86,0.1]
[1764024681375,31.80028574,138.87,138.86,0.1]
[1764024687567,8.80994492,138.86,138.85,0.1]
[1764024687755,17.38931366,138.86,138.85,0.1]
[1764024688252,20.27771312,138.86,138.85,0.1]
[1764024689364,27.47921103,138.86,138.85,0.1]
[1764024695893,16.308864,138.79,138.74,0.1]
[1764024696074,8.80994492,138.74,138.73,0.1]
[1764024696280,11.98994492,138.74,138.73,0.1]
[1764024696475,15.55084941,138.74,138.73,0.1]
[1764024696877,37.48139019,138.74,138.73,0.1]
[1764024697078,15.55084941,138.74,138.73,0.1]
[1764024697898,2.89090449,138.74,138.73,0.81]
[1764024698097,21.61475744,138.78,138.77,16.308864]
[1764024698271,21.61475744,138.78,138.77,21.03823274]
[1764024698594,7.529,138.8,138.77,95.54817766]
[1764024698899,7.529,138.8,138.79,4.72936874]
[1764024699790,7.529,138.8,138.79,11.93449879]
[1764024701701,3.769,138.8,138.79,11.93449879]
[1764024702274,16.308864,138.88,138.79,29.94732392]
[1764024702499,16.308864,138.88,138.83,4.72936874]
[1764024702500,19.508864,138.88,138.83,4.72936874]
[1764024702795,24.23823274,138.88,138.82,4.72936874]
[1764024703297,19.508864,138.88,138.82,4.72936874]
[1764024703703,19.508864,138.88,138.79,61.24360544]
[1764024703884,4.72936874,138.95,138.79,61.24360544]
[1764024703885,5.39936874,138.91,138.85,29.93642671]
[1764024704076,7.92936874,138.9,138.85,25.20705797]
[1764024704679,4.72936874,138.88,138.85,7.20201656]
[1764024705909,5.39936874,138.89,138.83,25.21031409]
[1764024706285,5.39936874,138.89,138.83,29.93968283]
[1764024709202,5.39936874,138.89,138.84,4.72936874]
[1764024709503,5.39936874,138.89,138.81,25.21432173]
[1764024709504,5.39936874,138.89,138.83,4.72936874]
[1764024709909,5.39936874,138.89,138.81,25.21432173]
[1764024709910,4.72936874,138.88,138.81,25.21432173]
[1764024710116,0.67,138.89,138.81,25.21432173]
[1764024710289,4.72936874,138.89,138.83,4.72936874]
[1764024710802,4.72936874,138.92,138.87,4.72936874]
[1764024710986,8.58936874,138.94,138.88,4.72936874]
[1764024711312,22.688864,138.94,138.9,7.19942404]
[1764024711482,22.688864,138.94,138.9,25.19798415]
[1764024711483,3.2,138.94,138.9,25.19798415]
[1764024711681,21.03823274,138.96,138.9,25.19798415]
[1764024711895,4.72936874,138.95,138.9,29.92735289]
[1764024712107,4.72936874,138.95,138.9,25.19798415]
[1764024712309,5.38936874,138.95,138.9,25.19798415]
[1764024712908,5.38936874,138.95,138.9,7.19942404]
[1764024713408,4.72936874,138.94,138.9,7.19942404]
[1764024713896,16.308864,138.93,138.9,7.19942404]
[1764024715096,16.308864,138.93,138.89,7.1999424]
[1764024715521,16.308864,138.93,138.89,11.92931114]
[1764024716309,16.308864,138.93,138.88,22.73007404]
[1764024717897,16.308864,138.93,138.88,18.0007053]
[1764024718724,19.488864,138.93,138.88,25.20116612]
[1764024720114,19.488864,138.93,138.88,18.0007053]
[1764024720297,24.89823274,138.93,138.88,18.0007053]
[1764024720499,5.40936874,138.92,138.87,7.20097933]
[1764024721105,4.72936874,138.92,138.87,7.20097933]
[1764024721429,5.40936874,138.91,138.87,7.20097933]
[1764024721918,0.68,138.91,138.87,7.20097933]
[1764024722123,3.18,138.9,138.87,7.20097933]
[1764024722416,3.18,138.9,138.86,25.20467668]
[1764024722607,5.40936874,138.93,138.87,4.72936874]
[1764024722807,3.18,138.92,138.87,4.72936874]
[1764024723292,3.86,138.92,138.87,4.72936874]
[1764024724518,3.86,138.92,138.88,25.20161289]
[1764024724891,3.18,138.92,138.88,25.20161289]
[1764024725096,0.68,138.91,138.88,25.20161289]
[1764024725816,0.68,138.91,138.86,29.93461142]
[1764024727010,0.68,138.91,138.86,194.33461142]
[1764024729223,0.68,138.91,138.86,189.60524268]
[1764024730427,3.18,138.92,138.86,189.60524268]
[1764024731024,0.68,138.92,138.86,189.60524268]
[1764024733421,0.68,138.92,138.86,192.78524268]
[1764024733630,0.68,138.92,138.86,228.79273223]
[1764024733934,0.68,138.92,138.86,233.52210097]
[1764024734620,3.18,138.93,138.87,8.80994492]
[1764024734936,16.988864,138.96,138.88,4.72936874]
[1764024735135,16.988864,138.96,138.89,3.18]
[1764024735731,0.68,138.96,138.89,167.58]
[1764024736833,0.68,138.96,138.9,25.19798415]
[1764024737341,0.68,138.96,138.9,29.92735289]
[1764024737819,24.21823274,138.98,138.9,29.92735289]
[1764024737820,0.68,138.97,138.9,29.92735289]
[1764024738346,5.40936874,138.97,138.9,65.92447312]
[1764024738523,3.70217776,138.97,138.9,64.21728214]
[1764024738921,3.70217776,138.97,138.9,228.61728214]
[1764024740345,0.68,138.96,138.9,228.61728214]
[1764024743837,3.70217776,138.97,138.9,228.61728214]
[1764024747057,0.68,138.97,138.9,228.61728214]
[1764024747231,3.86,138.98,138.9,228.61728214]
[1764024747442,3.86,138.98,138.91,3.18]
[1764024747644,3.86,138.98,138.91,167.58]
[1764024747953,3.18,138.98,138.92,25.19435646]
[1764024748158,0.68,138.97,138.92,25.19435646]
[1764024750853,0.68,138.97,138.92,189.59435646]
[1764024755053,6.88217776,138.99,138.92,189.59435646]
[1764024755253,0.68,138.98,138.92,189.59435646]
[1764024755580,0.68,138.98,138.92,192.61653422]
[1764024758079,6.20217776,138.99,138.92,192.61653422]
[1764024758288,0.68,138.99,138.93,11.98994492]
[1764024758590,20.75036857,139.0,138.93,15.01212268]
[1764024758783,20.75036857,139.0,138.93,179.41212268]
[1764024758982,0.68,138.99,138.93,179.41212268]
[1764024759361,17.04819081,139.0,138.94,28.21290756]
[1764024759568,17.04819081,139.0,138.94,225.57748667]
[1764024759760,17.72819081,139.0,138.94,225.57748667]
[1764024760582,17.72819081,139.0,138.94,228.59966443]
[1764024760766,1.41932681,139.0,138.94,228.59966443]
[1764024761363,0.73932681,139.0,138.94,228.59966443]
[1764024763189,1.41932681,139.0,138.94,228.59966443]
[1764024764070,0.73932681,139.0,138.95,3.02217776]
[1764024764277,0.73932681,139.0,138.94,228.59966443]
[1764024764787,0.73932681,139.0,138.95,3.02217776]
[1764024764966,0.73932681,139.0,138.95,3.74186109]
[1764024765282,0.73932681,139.0,138.96,25.18710419]
[1764024767369,0.73932681,139.0,138.96,189.58710419]
[1764024769496,0.72,138.99,138.96,87.68710419]
[1764024772482,1.45932681,139.0,138.96,87.68710419]
[1764024773704,0.68,138.99,138.96,87.68710419]
[1764024778107,1.41932681,139.0,138.96,87.68710419]
[1764024779726,0.68,138.99,138.96,87.68710419]
[1764024780328,0.73932681,139.0,138.96,87.68710419]
[1764024780522,0.68,138.99,138.96,69.69631548]
[1764024784930,0.73932681,139.0,138.96,69.69631548]
[1764024785134,1.41932681,139.0,138.96,69.69631548]
[1764024785333,1.41932681,139.0,138.96,87.68710419]
[1764024786229,0.73932681,139.0,138.96,87.68710419]
[1764024786431,0.68,138.99,138.96,87.68710419]
[1764024787917,0.73932681,139.0,138.96,87.68710419]
[1764024788124,1.41932681,139.0,138.96,87.68710419]
[1764024790021,0.73932681,139.0,138.96,87.68710419]
[1764024790211,1.41932681,139.0,138.96,87.68710419]
[1764024791020,0.73932681,139.0,138.96,87.68710419]
[1764024791219,1.41932681,139.0,138.96,87.68710419]
[1764024793551,0.73932681,139.0,138.96,87.68710419]
[1764024794541,1.41932681,139.0,138.96,90.70928195]
[1764024795244,1.41932681,139.0,138.96,192.60928195]
[1764024795942,0.73932681,139.0,138.99,3.02217776]
[1764024796125,0.73932681,139.0,138.99,65.52217776]
[1764024796329,0.73932681,139.0,138.99,72.71693997]
[1764024796943,0.2,139.01,138.99,75.89693997]
[1764024797134,0.2,139.01,139.0,3.02217776]
[1764024798539,0.2,139.01,139.0,11.90928981]
[1764024799746,0.2,139.01,139.0,12.62871427]
[1764024800445,0.2,139.01,139.0,11.90928981]
[1764024801232,0.2,139.02,139.01,62.3]
[1764024802770,0.2,139.02,139.01,69.49372706]
[1764024805344,0.2,139.02,139.01,171.39372706]
[1764024808658,0.91,139.02,139.01,171.39372706]
[1764024809059,0.91,139.02,139.01,69.49372706]
[1764024810174,0.91,139.02,139.01,62.3]
[1764024811871,0.91,139.02,138.93,0.7]
[1764024811872,16.308864,139.0,138.93,0.7]
[1764024812073,4.71504521,138.97,138.93,0.7]
[1764024812250,4.71504521,138.97,138.94,7.19735137]
[1764024812446,0.71,138.96,138.94,7.19735137]
[1764024813153,0.71,138.96,138.93,17.99442296]
[1764024813365,0.71,138.96,138.93,25.19229239]
[1764024815754,0.71,138.96,138.93,7.19786943]
[1764024819082,0.71,138.96,138.93,68.05786943]
[1764024822078,0.71,138.96,138.93,68.75786943]
[1764024822454,0.71,138.96,138.93,68.05786943]
[1764024824681,5.42504521,138.96,138.93,68.05786943]
[1764024825185,0.71,138.95,138.93,68.05786943]
[1764024826285,0.71,138.95,138.93,68.75786943]
[1764024826782,0.71,138.95,138.93,68.05786943]
[1764024834494,5.42504521,138.95,138.93,68.05786943]
[1764024834881,0.72,138.94,138.93,68.05786943]
[1764024835396,8.80994492,138.97,138.93,68.05786943]
[1764024835691,5.43504521,138.97,138.93,68.05786943]
[1764024835895,5.43504521,138.96,138.93,68.05786943]
[1764024836689,0.72,138.95,138.93,68.05786943]
[1764024838884,0.72,138.95,138.93,68.75786943]
[1764024841702,0.72,138.95,138.93,68.05786943]
[1764024841888,0.72,138.95,138.93,68.75786943]
[1764024842485,0.72,138.95,138.93,68.05786943]
[1764024843087,0.72,138.95,138.93,68.75786943]
[1764024843406,7.89504521,138.96,138.93,68.75786943]
[1764024843896,0.72,138.95,138.93,68.75786943]
[1764024844807,0.72,138.95,138.93,68.05786943]
[1764024845897,0.72,138.95,138.93,68.75786943]
[1764024846796,5.43504521,138.95,138.93,60.86]
[1764024847319,0.72,138.94,138.93,60.86]
[1764024851496,16.308864,138.95,138.93,68.05786943]
[1764024851696,0.72,138.94,138.93,68.05786943]
[1764024856803,0.72,138.94,138.93,60.86]
[1764024860020,3.9,138.94,138.93,60.86]
[1764024864809,3.18,138.96,138.93,0.7]
[1764024865011,3.18,138.96,138.94,0.7]
[1764024866431,3.18,138.96,138.94,7.89695841]
[1764024867531,3.84,138.96,138.94,7.89695841]
[1764024868041,6.86347753,138.96,138.94,7.19695841]
[1764024869331,6.86347753,138.96,138.93,0.7]
[1764024869517,0.66,138.95,138.93,0.7]
[1764024871263,0.66,138.95,138.93,7.89753572]
[1764024872947,0.66,138.95,138.92,0.7]
[1764024873153,0.66,138.95,138.9,25.19798415]
[1764024873340,3.02347753,138.94,138.9,169.95942404]
[1764024873534,6.20347753,138.93,138.9,7.89942404]
[1764024873945,6.86347753,138.93,138.9,7.89942404]
[1764024875157,0.66,138.92,138.9,68.05942404]
[1764024875556,6.20347753,138.93,138.91,0.7]
[1764024876059,3.18,138.93,138.91,0.7]
[1764024876272,3.18,138.93,138.91,7.89890367]
[1764024876638,3.84,138.93,138.91,7.89890367]
[1764024876835,3.84,138.93,138.91,7.19890367]
[1764024877038,3.84,138.93,138.91,7.89890367]
[1764024877456,6.86347753,138.93,138.9,68.05930658]
[1764024877762,6.86347753,138.93,138.9,68.75930658]
[1764024878058,3.68347753,138.92,138.88,18.70057741]
[1764024878263,10.8806478,138.92,138.89,0.7]
[1764024879355,10.8806478,138.92,138.89,7.8998656]
[1764024879736,7.85717027,138.92,138.89,7.8998656]
[1764024881450,7.85717027,138.92,138.89,68.7598656]
[1764024882439,7.85717027,138.92,138.9,7.89934232]
[1764024882779,7.85717027,138.92,138.9,7.19934232]
[1764024883276,7.85717027,138.92,138.9,7.89934232]
[1764024884075,7.85717027,138.92,138.9,7.19934232]
[1764024885753,7.85717027,138.92,138.9,7.89934232]
[1764024886261,7.85717027,138.92,138.9,7.19934232]
[1764024887467,7.85717027,138.92,138.9,68.05934232]
[1764024888065,0.72,138.91,138.9,68.05934232]
[1764024888464,7.91717027,138.92,138.9,68.05934232]
[1764024888764,10.9406478,138.92,138.9,7.19934232]
[1764024889956,0.72,138.91,138.9,7.19934232]
[1764024890160,11.6606478,138.91,138.9,7.19934232]
[1764024891580,11.6606478,138.91,138.89,7.1999424]
[1764024891762,3.18,138.9,138.89,7.8999424]
[1764024893367,3.18,138.9,138.89,68.7599424]
[1764024897382,13.96412533,138.92,138.89,86.7597984]
[1764024897565,3.18,138.91,138.9,0.71]
[1764024898690,3.18,138.91,138.9,7.90942404]
[1764024899193,3.18,138.91,138.9,68.76942404]
[1764024899888,3.18,138.91,138.9,68.05942404]
[1764024900790,14.65412533,138.92,138.9,68.05942404]
[1764024900991,3.18,138.91,138.9,68.05942404]
[1764024901178,3.18,138.91,138.9,68.76942404]
[1764024904092,3.18,138.91,138.9,60.86]
[1764024904387,6.89347753,138.91,138.86,0.71]
[1764024904565,3.02347753,138.88,138.86,0.71]
[1764024904762,6.20347753,138.88,138.86,0.71]
[1764024905184,6.20347753,138.88,138.87,7.20097933]
[1764024905680,6.20347753,138.88,138.87,0.71]
[1764024906480,3.18,138.88,138.87,0.71]
[1764024907090,3.18,138.88,138.87,7.91097933]
[1764024912480,0.69,138.94,138.87,71.79445686]
[1764024912681,0.69,138.95,138.89,3.02347753]
[1764024912888,3.18,138.93,138.89,3.02347753]
[1764024913194,3.18,138.93,138.9,0.71]
[1764024913404,3.18,138.93,138.9,163.47]
[1764024913573,3.18,138.93,138.91,7.90890576]
[1764024914097,3.18,138.93,138.92,0.71]
[1764024915798,3.18,138.93,138.92,7.90838756]
[1764024916580,3.18,138.93,138.92,7.19838756]
[1764024917106,3.18,138.93,138.92,68.05838756]
[1764024917300,3.18,138.93,138.92,68.76838756]
[1764024917478,3.02347753,138.97,138.92,86.76435646]
[1764024917677,0.69,138.99,138.94,25.1907298]
[1764024917678,3.02347753,138.98,138.94,25.1907298]
[1764024917904,3.18,138.98,138.94,86.0507298]
[1764024918197,3.18,138.98,138.95,0.71]
[1764024918401,6.89347753,138.98,138.95,61.57]
[1764024918774,6.89347753,138.98,138.96,0.71]
[1764024919188,6.20347753,138.98,138.96,0.71]
[1764024919392,6.20347753,138.98,138.97,7.19579765]
[1764024920603,19.48768392,139.01,138.96,7.19631548]
[1764024920793,4.72131396,138.98,138.96,7.90631548]
[1764024920994,4.72131396,138.99,138.97,0.71]
[1764024921204,8.59131396,139.0,138.97,0.71]
[1764024921909,4.72131396,138.99,138.97,0.71]
[1764024922205,4.72131396,138.99,138.97,7.90543679]
[1764024922512,7.90131396,139.0,138.97,7.90543679]
[1764024922707,7.90131396,139.0,138.98,0.68]
[1764024923010,8.56131396,138.99,138.97,7.87543679]
[1764024923310,7.90131396,138.99,138.97,68.73543679]
[1764024923483,7.90131396,138.99,138.97,61.54]
[1764024923684,7.90131396,138.99,138.97,68.05568069]
[1764024923880,7.90131396,138.99,138.98,0.68]
[1764024924106,3.18,138.99,138.98,0.68]
[1764024924310,7.90131396,138.99,138.98,0.68]
[1764024928211,0.66,139.0,138.98,0.68]
[1764024928212,3.18,139.0,138.98,68.73527989]
[1764024928898,7.90131396,139.0,138.98,68.73527989]
[1764024929820,3.18,139.0,138.98,68.73527989]
[1764024929999,7.90131396,139.0,138.98,68.73527989]
[1764024932197,3.18,139.0,138.98,68.73527989]
[1764024932400,7.90131396,139.0,138.98,68.73527989]
[1764024937525,7.90131396,139.0,138.99,0.68]
[1764024937821,7.90131396,139.0,138.99,68.73476221]
[1764024938610,3.18,139.0,138.99,68.73476221]
[1764024938924,0.2,139.02,138.99,68.73476221]
[1764024939235,0.2,139.02,139.0,0.68]
[1764024939439,0.2,139.02,139.0,61.54]
[1764024939924,0.2,139.02,139.01,7.87372706]
[1764024943327,4.92131396,139.02,139.01,7.19372706]
[1764024943831,4.92131396,139.02,139.01,7.87372706]
[1764024946931,4.92131396,139.02,139.0,0.68]
[1764024947135,0.2,139.02,139.0,0.68]
[1764024948544,0.2,139.02,139.01,7.19372706]
[1764024948712,5.59131396,139.02,139.0,7.19401088]
[1764024949138,5.39131396,139.01,139.0,7.19401088]
[1764024950308,0.67,139.01,139.0,7.19401088]
[1764024950622,0.67,139.01,138.99,25.18166774]
[1764024950930,0.67,139.01,138.99,25.87166774]
[1764024952724,0.67,139.01,138.99,86.73166774]
[1764024956641,0.2,139.02,139.0,0.69]
[1764024957040,0.2,139.02,139.0,163.45]
[1764024957613,0.2,139.02,139.01,0.69]
[1764024958445,0.2,139.02,139.01,7.88372706]
[1764024958922,0.2,139.02,139.01,85.05259106]
[1764024959123,0.2,139.02,139.01,190.13259106]
[1764024962234,0.2,139.02,139.01,173.82372706]
[1764024964045,0.2,139.06,139.03,60.46]
[1764024964242,0.91,139.06,139.03,162.36]
[1764024964418,0.91,139.06,139.04,0.69]
[1764024965528,0.91,139.06,139.05,7.19165767]
[1764024966749,0.2,139.06,139.05,7.19165767]
[1764024967422,0.2,139.06,139.05,67.65165767]
[1764024971557,0.2,139.06,139.05,68.34165767]
[1764024979166,0.2,139.06,139.05,67.65165767]
[1764024980131,0.2,139.06,139.05,68.34165767]
[1764024982841,0.2,139.06,139.05,67.65165767]
[1764024983353,0.2,139.06,139.05,68.34165767]
[1764024985166,0.2,139.06,139.05,67.65165767]
[1764024985665,0.2,139.06,139.05,68.34165767]
[1764024987770,0.2,139.06,139.05,67.65165767]
[1764024987944,0.2,139.06,139.05,68.34165767]